[Event "Titled Tuesday Blitz April 25 Early 2023"]
[White "Movahed, Sina"]
[Black "Caruana, Fabiano"]
[WhiteFideId "42520835"]
[BlackFideId "2020009"]
[WhiteElo "2225"]
[BlackElo "2837"]
[Result "0-1"]
[Round "04"]
[TimeControl "180+2"]
[Date "2023.04.25"]
[WhiteClock "0:00:01"]
[BlackClock "0:01:06"]

1. e4 {[%clk 0:03:00]}  e5 {[%clk 0:02:59]} 2. Nf3 {[%clk 0:02:59]}  Nc6 {[%clk 0:03:00]} 3. Bb5 {[%clk 0:02:55]}  a6 {[%clk 0:03:00]} 4. Ba4 {[%clk 0:02:54]}  Nf6 {[%clk 0:03:00]} 5. O-O {[%clk 0:02:49]}  b5 {[%clk 0:03:00]} 6. Bb3 {[%clk 0:02:49]}  Bc5 {[%clk 0:03:01]} 7. c3 {[%clk 0:02:48]}  d6 {[%clk 0:03:01]} 8. a4 {[%clk 0:02:48]}  Rb8 {[%clk 0:03:00]} 9. d4 {[%clk 0:02:49]}  Bb6 {[%clk 0:03:01]} 10. a5 {[%clk 0:02:48]}  Ba7 {[%clk 0:03:01]} 11. h3 {[%clk 0:02:49]}  O-O {[%clk 0:03:00]} 12. Be3 {[%clk 0:02:49]}  Ra8 {[%clk 0:02:59]} 13. Re1 {[%clk 0:02:47]}  h6 {[%clk 0:03:00]} 14. Nbd2 {[%clk 0:02:46]}  Re8 {[%clk 0:03:00]} 15. g4 {[%clk 0:02:46]}  exd4 {[%clk 0:02:58]} 16. cxd4 {[%clk 0:02:42]}  Nb4 {[%clk 0:02:59]} 17. g5 {[%clk 0:02:40]}  Nxe4 {[%clk 0:02:48]} 18. Nxe4 {[%clk 0:02:36]}  Rxe4 {[%clk 0:02:49]} 19. gxh6 {[%clk 0:02:29]}  d5 {[%clk 0:02:46]} 20. Ng5 {[%clk 0:02:25]}  Bf5 {[%clk 0:02:40]} 21. Qf3 {[%clk 0:01:42]}  Bg6 {[%clk 0:02:04]} 22. h7+ {[%clk 0:01:36]}  Kh8 {[%clk 0:01:50]} 23. Nxe4 {[%clk 0:01:31]}  dxe4 {[%clk 0:01:48]} 24. Qg4 {[%clk 0:01:26]}  Nd3 {[%clk 0:01:46]} 25. Re2 {[%clk 0:01:24]}  Bxd4 {[%clk 0:01:44]} 26. Rd1 {[%clk 0:01:03]}  c5 {[%clk 0:01:43]} 27. Bxd4 {[%clk 0:00:45]}  Qxd4 {[%clk 0:01:44]} 28. Bc2 {[%clk 0:00:21]}  c4 {[%clk 0:01:41]} 29. b3 {[%clk 0:00:19]}  Qc5 {[%clk 0:01:26]} 30. Qh4 {[%clk 0:00:09]}  Rc8 {[%clk 0:01:14]} 31. bxc4 {[%clk 0:00:08]}  bxc4 {[%clk 0:01:14]} 32. Re3 {[%clk 0:00:03]}  Qxa5 {[%clk 0:01:08]} 33. Qg4 {[%clk 0:00:01]}  Qc5 {[%clk 0:01:06]} 0-1


[Site "https://www.chess.com"]

[Event "Titled Tuesday Blitz April 25 Early 2023"]
[White "So, Wesley"]
[Black "Kuzubov, Yuriy"]
[WhiteFideId "5202213"]
[BlackFideId "14112906"]
[WhiteElo "2749"]
[BlackElo "2496"]
[Result "0-1"]
[Round "04"]
[TimeControl "180+2"]
[Date "2023.04.25"]
[WhiteClock "0:00:06"]
[BlackClock "0:00:45"]

1. e4 {[%clk 0:03:00]}  c5 {[%clk 0:02:55]} 2. Nf3 {[%clk 0:03:00]}  Nc6 {[%clk 0:02:56]} 3. d4 {[%clk 0:03:00]}  cxd4 {[%clk 0:02:56]} 4. Nxd4 {[%clk 0:03:00]}  Nf6 {[%clk 0:02:57]} 5. Nc3 {[%clk 0:03:00]}  e5 {[%clk 0:02:57]} 6. Ndb5 {[%clk 0:03:00]}  d6 {[%clk 0:02:58]} 7. Nd5 {[%clk 0:02:59]}  Nxd5 {[%clk 0:02:58]} 8. exd5 {[%clk 0:03:00]}  Nb8 {[%clk 0:02:58]} 9. a4 {[%clk 0:02:59]}  Be7 {[%clk 0:02:57]} 10. Be2 {[%clk 0:03:00]}  O-O {[%clk 0:02:57]} 11. O-O {[%clk 0:03:00]}  Nd7 {[%clk 0:02:56]} 12. Bd2 {[%clk 0:02:58]}  f5 {[%clk 0:02:44]} 13. a5 {[%clk 0:02:58]}  a6 {[%clk 0:02:44]} 14. Na3 {[%clk 0:02:58]}  e4 {[%clk 0:02:45]} 15. Nc4 {[%clk 0:02:53]}  Ne5 {[%clk 0:02:45]} 16. Nb6 {[%clk 0:02:49]}  Rb8 {[%clk 0:02:45]} 17. f4 {[%clk 0:02:49]}  exf3 {[%clk 0:02:45]} 18. Bxf3 {[%clk 0:02:49]}  Bf6 {[%clk 0:02:41]} 19. Kh1 {[%clk 0:02:11]}  Nd7 {[%clk 0:02:33]} 20. Nc4 {[%clk 0:02:10]}  Ne5 {[%clk 0:02:33]} 21. Nb6 {[%clk 0:02:09]}  Nd7 {[%clk 0:02:33]} 22. Be3 {[%clk 0:01:58]}  Bxb2 {[%clk 0:02:25]} 23. Nc4 {[%clk 0:01:48]}  Bxa1 {[%clk 0:02:22]} 24. Qxa1 {[%clk 0:01:49]}  f4 {[%clk 0:02:09]} 25. Ba7 {[%clk 0:01:44]}  Ra8 {[%clk 0:02:01]} 26. Bd4 {[%clk 0:01:44]}  Nf6 {[%clk 0:01:50]} 27. Bb6 {[%clk 0:01:35]}  Qd7 {[%clk 0:01:37]} 28. Qa3 {[%clk 0:01:27]}  Qb5 {[%clk 0:01:30]} 29. Nd2 {[%clk 0:01:11]}  Bg4 {[%clk 0:01:23]} 30. c4 {[%clk 0:00:56]}  Qd7 {[%clk 0:01:23]} 31. Bd4 {[%clk 0:00:44]}  Bxf3 {[%clk 0:01:22]} 32. gxf3 {[%clk 0:00:45]}  Rae8 {[%clk 0:01:17]} 33. Rg1 {[%clk 0:00:45]}  Re2 {[%clk 0:01:07]} 34. Qd3 {[%clk 0:00:41]}  Re7 {[%clk 0:01:04]} 35. Qc3 {[%clk 0:00:40]}  Qf5 {[%clk 0:00:59]} 36. Qb4 {[%clk 0:00:34]}  Re2 {[%clk 0:00:53]} 37. Qxb7 {[%clk 0:00:21]}  g6 {[%clk 0:00:46]} 38. Ne4 {[%clk 0:00:10]}  Rxe4 {[%clk 0:00:46]} 39. Bxf6 {[%clk 0:00:11]}  Rxf6 {[%clk 0:00:45]} 40. fxe4 {[%clk 0:00:05]}  Qxe4+ {[%clk 0:00:45]} 41. Rg2 {[%clk 0:00:06]}  f3 {[%clk 0:00:45]} 0-1


[Site "https://www.chess.com"]

[Event "Titled Tuesday Blitz April 25 Early 2023"]
[White "Fressinet, Laurent"]
[Black "Mamedyarov, Shakhriyar"]
[WhiteFideId "608742"]
[BlackFideId "13401319"]
[WhiteElo "2633"]
[BlackElo "2704"]
[Result "0-1"]
[Round "04"]
[TimeControl "180+2"]
[Date "2023.04.25"]
[WhiteClock "0:00:03"]
[BlackClock "0:00:19"]

1. d4 {[%clk 0:02:56]}  Nf6 {[%clk 0:02:58]} 2. Nf3 {[%clk 0:02:56]}  g6 {[%clk 0:02:56]} 3. Bg5 {[%clk 0:02:54]}  Bg7 {[%clk 0:02:56]} 4. Nbd2 {[%clk 0:02:54]}  O-O {[%clk 0:02:57]} 5. e3 {[%clk 0:02:54]}  d5 {[%clk 0:02:52]} 6. Be2 {[%clk 0:02:54]}  b6 {[%clk 0:02:51]} 7. O-O {[%clk 0:02:53]}  c5 {[%clk 0:02:51]} 8. c3 {[%clk 0:02:49]}  Bb7 {[%clk 0:02:49]} 9. a4 {[%clk 0:02:46]}  Nc6 {[%clk 0:02:49]} 10. h3 {[%clk 0:02:42]}  Rc8 {[%clk 0:02:41]} 11. Bf4 {[%clk 0:02:33]}  Nd7 {[%clk 0:02:29]} 12. Bh2 {[%clk 0:02:31]}  e5 {[%clk 0:02:26]} 13. dxe5 {[%clk 0:02:28]}  Ndxe5 {[%clk 0:02:27]} 14. Nxe5 {[%clk 0:02:28]}  Nxe5 {[%clk 0:02:28]} 15. Nf3 {[%clk 0:02:28]}  Nc4 {[%clk 0:02:24]} 16. Qc2 {[%clk 0:02:22]}  Qe7 {[%clk 0:02:23]} 17. Nd2 {[%clk 0:02:04]}  Ne5 {[%clk 0:02:14]} 18. Rfe1 {[%clk 0:01:40]}  d4 {[%clk 0:02:05]} 19. exd4 {[%clk 0:01:31]}  cxd4 {[%clk 0:02:06]} 20. Bxe5 {[%clk 0:01:30]}  Bxe5 {[%clk 0:01:59]} 21. Bf3 {[%clk 0:01:29]}  dxc3 {[%clk 0:01:56]} 22. bxc3 {[%clk 0:01:20]}  Ba6 {[%clk 0:01:44]} 23. a5 {[%clk 0:01:08]}  b5 {[%clk 0:01:42]} 24. Bg4 {[%clk 0:00:54]}  Rc5 {[%clk 0:01:28]} 25. Nf3 {[%clk 0:00:52]}  h5 {[%clk 0:01:16]} 26. Nxe5 {[%clk 0:00:41]}  Rxe5 {[%clk 0:01:17]} 27. Rxe5 {[%clk 0:00:40]}  Qxe5 {[%clk 0:01:18]} 28. Be2 {[%clk 0:00:38]}  Rc8 {[%clk 0:01:15]} 29. Rc1 {[%clk 0:00:37]}  Bb7 {[%clk 0:01:13]} 30. Qb2 {[%clk 0:00:23]}  a6 {[%clk 0:00:56]} 31. Bf1 {[%clk 0:00:22]}  Ba8 {[%clk 0:00:53]} 32. Qb4 {[%clk 0:00:20]}  Bd5 {[%clk 0:00:47]} 33. Rd1 {[%clk 0:00:18]}  Be6 {[%clk 0:00:44]} 34. Qd6 {[%clk 0:00:09]}  Qxd6 {[%clk 0:00:35]} 35. Rxd6 {[%clk 0:00:10]}  Rxc3 {[%clk 0:00:35]} 36. f3 {[%clk 0:00:10]}  b4 {[%clk 0:00:31]} 37. Rxa6 {[%clk 0:00:09]}  Rc1 {[%clk 0:00:30]} 38. Ra8+ {[%clk 0:00:09]}  Kg7 {[%clk 0:00:30]} 39. Kf2 {[%clk 0:00:10]}  Rc2+ {[%clk 0:00:28]} 40. Ke1 {[%clk 0:00:09]}  b3 {[%clk 0:00:26]} 41. Rb8 {[%clk 0:00:09]}  b2 {[%clk 0:00:26]} 42. Bd3 {[%clk 0:00:10]}  Rxg2 {[%clk 0:00:25]} 43. a6 {[%clk 0:00:10]}  Bd5 {[%clk 0:00:22]} 44. f4 {[%clk 0:00:04]}  Rg3 {[%clk 0:00:22]} 45. Kd2 {[%clk 0:00:04]}  Rxh3 {[%clk 0:00:20]} 46. a7 {[%clk 0:00:04]}  h4 {[%clk 0:00:20]} 47. Bc2 {[%clk 0:00:03]}  Rh1 {[%clk 0:00:20]} 48. Rxb2 {[%clk 0:00:03]}  Ra1 {[%clk 0:00:19]} 49. Rb5 {[%clk 0:00:03]}  Bg2 {[%clk 0:00:19]} 0-1


[Site "https://www.chess.com"]

[Event "Titled Tuesday Blitz April 25 Early 2023"]
[White "Le, Tuan Minh"]
[Black "Donchenko, Alexander"]
[WhiteFideId "12401153"]
[BlackFideId "24603295"]
[WhiteElo "2566"]
[BlackElo "2542"]
[Result "0-1"]
[Round "04"]
[TimeControl "180+2"]
[Date "2023.04.25"]
[WhiteClock "0:00:01"]
[BlackClock "0:00:04"]

1. d4 {[%clk 0:03:00]}  Nf6 {[%clk 0:03:00]} 2. Nf3 {[%clk 0:03:00]}  d5 {[%clk 0:03:00]} 3. Bf4 {[%clk 0:02:58]}  e6 {[%clk 0:03:00]} 4. e3 {[%clk 0:02:58]}  Bd6 {[%clk 0:03:01]} 5. Nbd2 {[%clk 0:02:56]}  b6 {[%clk 0:03:00]} 6. c3 {[%clk 0:02:56]}  O-O {[%clk 0:02:59]} 7. Bd3 {[%clk 0:02:57]}  Ba6 {[%clk 0:02:59]} 8. Bxa6 {[%clk 0:02:57]}  Nxa6 {[%clk 0:03:00]} 9. Bg5 {[%clk 0:02:58]}  h6 {[%clk 0:02:56]} 10. Bxf6 {[%clk 0:02:54]}  Qxf6 {[%clk 0:02:57]} 11. Qe2 {[%clk 0:02:54]}  Nb8 {[%clk 0:02:55]} 12. e4 {[%clk 0:02:55]}  Qg6 {[%clk 0:02:48]} 13. O-O {[%clk 0:02:48]}  Rd8 {[%clk 0:02:38]} 14. Rfe1 {[%clk 0:02:43]}  dxe4 {[%clk 0:02:35]} 15. Nxe4 {[%clk 0:02:44]}  Nd7 {[%clk 0:02:35]} 16. Rad1 {[%clk 0:02:39]}  Nf6 {[%clk 0:02:34]} 17. Nxf6+ {[%clk 0:02:23]}  Qxf6 {[%clk 0:02:35]} 18. Rd3 {[%clk 0:02:23]}  a5 {[%clk 0:02:27]} 19. Red1 {[%clk 0:02:20]}  a4 {[%clk 0:02:26]} 20. a3 {[%clk 0:02:21]}  Ra5 {[%clk 0:02:26]} 21. g3 {[%clk 0:02:19]}  Qf5 {[%clk 0:02:19]} 22. Kg2 {[%clk 0:02:18]}  Qd5 {[%clk 0:02:16]} 23. Re3 {[%clk 0:02:14]}  Be7 {[%clk 0:02:10]} 24. c4 {[%clk 0:01:59]}  Qa8 {[%clk 0:02:07]} 25. d5 {[%clk 0:01:59]}  Bc5 {[%clk 0:02:05]} 26. Red3 {[%clk 0:01:52]}  exd5 {[%clk 0:02:01]} 27. Rxd5 {[%clk 0:01:53]}  Re8 {[%clk 0:02:00]} 28. Qc2 {[%clk 0:01:45]}  Bd6 {[%clk 0:01:55]} 29. Rxa5 {[%clk 0:01:34]}  Qxa5 {[%clk 0:01:56]} 30. Rd5 {[%clk 0:01:35]}  Qa8 {[%clk 0:01:55]} 31. h4 {[%clk 0:01:35]}  Re7 {[%clk 0:01:45]} 32. Qd1 {[%clk 0:01:26]}  Qe8 {[%clk 0:01:42]} 33. Rd2 {[%clk 0:00:57]}  Qc6 {[%clk 0:01:39]} 34. Rd4 {[%clk 0:00:55]}  Re6 {[%clk 0:01:28]} 35. Qd3 {[%clk 0:00:50]}  h5 {[%clk 0:01:14]} 36. Rd5 {[%clk 0:00:50]}  Qe8 {[%clk 0:00:58]} 37. Rxh5 {[%clk 0:00:45]}  g6 {[%clk 0:00:54]} 38. Rd5 {[%clk 0:00:45]}  Re2 {[%clk 0:00:53]} 39. h5 {[%clk 0:00:40]}  Rxb2 {[%clk 0:00:47]} 40. hxg6 {[%clk 0:00:39]}  fxg6 {[%clk 0:00:48]} 41. Rg5 {[%clk 0:00:36]}  Kh7 {[%clk 0:00:44]} 42. Nh4 {[%clk 0:00:20]}  Qf7 {[%clk 0:00:37]} 43. Rxg6 {[%clk 0:00:21]}  Qxf2+ {[%clk 0:00:28]} 44. Kh3 {[%clk 0:00:21]}  Qh2+ {[%clk 0:00:28]} 45. Kg4 {[%clk 0:00:22]}  Qe2+ {[%clk 0:00:29]} 46. Qxe2 {[%clk 0:00:17]}  Rxe2 {[%clk 0:00:29]} 47. Rf6 {[%clk 0:00:14]}  Re4+ {[%clk 0:00:27]} 48. Kh5 {[%clk 0:00:14]}  Bxg3 {[%clk 0:00:24]} 49. Nf5 {[%clk 0:00:12]}  Bh2 {[%clk 0:00:21]} 50. Rf7+ {[%clk 0:00:11]}  Kg8 {[%clk 0:00:21]} 51. Nh6+ {[%clk 0:00:11]}  Kh8 {[%clk 0:00:22]} 52. Rd7 {[%clk 0:00:11]}  Rxc4 {[%clk 0:00:18]} 53. Ng4 {[%clk 0:00:11]}  Rc5+ {[%clk 0:00:12]} 54. Kg6 {[%clk 0:00:10]}  Rc6+ {[%clk 0:00:05]} 55. Kf5 {[%clk 0:00:10]}  Rd6 {[%clk 0:00:03]} 56. Re7 {[%clk 0:00:08]}  Bg3 {[%clk 0:00:03]} 57. Re4 {[%clk 0:00:04]}  Kg7 {[%clk 0:00:02]} 58. Re8 {[%clk 0:00:05]}  Kf7 {[%clk 0:00:03]} 59. Ra8 {[%clk 0:00:05]}  Rd4 {[%clk 0:00:02]} 60. Nh6+ {[%clk 0:00:03]}  Ke7 {[%clk 0:00:02]} 61. Kg6 {[%clk 0:00:03]}  Kd7 {[%clk 0:00:02]} 62. Nf5 {[%clk 0:00:03]}  Rd3 {[%clk 0:00:02]} 63. Kf6 {[%clk 0:00:03]}  Bd6 {[%clk 0:00:02]} 64. Kg5 {[%clk 0:00:02]}  Bxa3 {[%clk 0:00:02]} 65. Kf4 {[%clk 0:00:03]}  Bc5 {[%clk 0:00:01]} 66. Ke4 {[%clk 0:00:03]}  Ra3 {[%clk 0:00:02]} 67. Nh6 {[%clk 0:00:02]}  Kc6 {[%clk 0:00:02]} 68. Ng4 {[%clk 0:00:02]}  Ra2 {[%clk 0:00:02]} 69. Ne5+ {[%clk 0:00:01]}  Kb5 {[%clk 0:00:02]} 70. Rg8 {[%clk 0:00:02]}  a3 {[%clk 0:00:03]} 71. Rg3 {[%clk 0:00:01]}  Re2+ {[%clk 0:00:03]} 72. Kf5 {[%clk 0:00:01]}  a2 {[%clk 0:00:04]} 73. Rb3+ {[%clk 0:00:01]}  Ka4 {[%clk 0:00:04]} 0-1


[Site "https://www.chess.com"]

[Event "Titled Tuesday Blitz April 25 Early 2023"]
[White "Harsha Bharathakoti"]
[Black "Korobov, Anton"]
[WhiteFideId "5078776"]
[BlackFideId "14105730"]
[WhiteElo "2504"]
[BlackElo "2638"]
[Result "1/2-1/2"]
[Round "04"]
[TimeControl "180+2"]
[Date "2023.04.25"]
[WhiteClock "0:00:04"]
[BlackClock "0:00:07"]

1. Nf3 {[%clk 0:02:59]}  d5 {[%clk 0:02:59]} 2. g3 {[%clk 0:02:58]}  c6 {[%clk 0:02:59]} 3. Bg2 {[%clk 0:02:58]}  Bg4 {[%clk 0:03:00]} 4. c4 {[%clk 0:02:56]}  e6 {[%clk 0:02:59]} 5. cxd5 {[%clk 0:02:53]}  exd5 {[%clk 0:02:59]} 6. O-O {[%clk 0:02:52]}  Bd6 {[%clk 0:02:59]} 7. Qb3 {[%clk 0:02:52]}  Qb6 {[%clk 0:02:58]} 8. Qc2 {[%clk 0:02:53]}  Ne7 {[%clk 0:02:52]} 9. d3 {[%clk 0:02:53]}  Nd7 {[%clk 0:02:50]} 10. e4 {[%clk 0:02:53]}  O-O {[%clk 0:02:44]} 11. Nc3 {[%clk 0:02:50]}  Rac8 {[%clk 0:02:18]} 12. Be3 {[%clk 0:02:45]}  Qa6 {[%clk 0:02:18]} 13. h3 {[%clk 0:02:32]}  Bh5 {[%clk 0:02:18]} 14. a3 {[%clk 0:02:26]}  Bc5 {[%clk 0:02:02]} 15. Bf4 {[%clk 0:01:50]}  Bb6 {[%clk 0:01:49]} 16. Na4 {[%clk 0:01:44]}  Rfe8 {[%clk 0:01:42]} 17. Nxb6 {[%clk 0:01:42]}  axb6 {[%clk 0:01:43]} 18. Rfe1 {[%clk 0:01:41]}  Nc5 {[%clk 0:01:37]} 19. Rad1 {[%clk 0:01:05]}  Qa4 {[%clk 0:01:37]} 20. Qxa4 {[%clk 0:00:59]}  Nxa4 {[%clk 0:01:38]} 21. Rd2 {[%clk 0:00:50]}  f6 {[%clk 0:01:37]} 22. Be3 {[%clk 0:00:40]}  Bf7 {[%clk 0:01:27]} 23. Rc1 {[%clk 0:00:24]}  dxe4 {[%clk 0:01:13]} 24. dxe4 {[%clk 0:00:24]}  c5 {[%clk 0:01:07]} 25. Bf1 {[%clk 0:00:22]}  Nc6 {[%clk 0:01:03]} 26. Bb5 {[%clk 0:00:21]}  Rxe4 {[%clk 0:01:03]} 27. Rd7 {[%clk 0:00:17]}  Nxb2 {[%clk 0:00:51]} 28. Rxb7 {[%clk 0:00:17]}  Na5 {[%clk 0:00:46]} 29. Rxb6 {[%clk 0:00:17]}  Nac4 {[%clk 0:00:46]} 30. Rc6 {[%clk 0:00:09]}  Rb8 {[%clk 0:00:37]} 31. Rxc5 {[%clk 0:00:06]}  h6 {[%clk 0:00:26]} 32. Bc6 {[%clk 0:00:04]}  Re7 {[%clk 0:00:24]} 33. Bd4 {[%clk 0:00:05]}  Nxa3 {[%clk 0:00:22]} 34. Ra5 {[%clk 0:00:02]}  Nac4 {[%clk 0:00:20]} 35. Ra7 {[%clk 0:00:03]}  Rxa7 {[%clk 0:00:18]} 36. Bxa7 {[%clk 0:00:03]}  Rc8 {[%clk 0:00:18]} 37. Be4 {[%clk 0:00:04]}  Re8 {[%clk 0:00:18]} 38. Bb1 {[%clk 0:00:03]}  Na3 {[%clk 0:00:17]} 39. Bd4 {[%clk 0:00:02]}  Nxb1 {[%clk 0:00:16]} 40. Bxb2 {[%clk 0:00:02]}  Rb8 {[%clk 0:00:14]} 41. Rxb1 {[%clk 0:00:02]}  Bg6 {[%clk 0:00:15]} 42. Ra1 {[%clk 0:00:02]}  Rxb2 {[%clk 0:00:15]} 43. Nh4 {[%clk 0:00:02]}  Be4 {[%clk 0:00:15]} 44. Ng2 {[%clk 0:00:01]}  g5 {[%clk 0:00:15]} 45. Ne3 {[%clk 0:00:02]}  Kg7 {[%clk 0:00:15]} 46. h4 {[%clk 0:00:02]}  Kg6 {[%clk 0:00:15]} 47. hxg5 {[%clk 0:00:03]}  hxg5 {[%clk 0:00:16]} 48. Nd1 {[%clk 0:00:03]}  Rd2 {[%clk 0:00:15]} 49. Ne3 {[%clk 0:00:03]}  f5 {[%clk 0:00:16]} 50. Rd1 {[%clk 0:00:04]}  Ra2 {[%clk 0:00:15]} 51. Rd6+ {[%clk 0:00:03]}  Kf7 {[%clk 0:00:15]} 52. Rd1 {[%clk 0:00:02]}  Ke6 {[%clk 0:00:13]} 53. Rc1 {[%clk 0:00:02]}  f4 {[%clk 0:00:13]} 54. gxf4 {[%clk 0:00:02]}  gxf4 {[%clk 0:00:14]} 55. Nd1 {[%clk 0:00:03]}  Ra8 {[%clk 0:00:12]} 56. Nc3 {[%clk 0:00:04]}  Rg8+ {[%clk 0:00:12]} 57. Kf1 {[%clk 0:00:04]}  Bd3+ {[%clk 0:00:12]} 58. Ke1 {[%clk 0:00:05]}  Rg2 {[%clk 0:00:10]} 59. Kd2 {[%clk 0:00:06]}  Bf5 {[%clk 0:00:09]} 60. Ke2 {[%clk 0:00:05]}  Bg4+ {[%clk 0:00:09]} 61. Kd3 {[%clk 0:00:04]}  Rxf2 {[%clk 0:00:09]} 62. Ne4 {[%clk 0:00:04]}  Bf5 {[%clk 0:00:08]} 63. Rc6+ {[%clk 0:00:03]}  Kd7 {[%clk 0:00:08]} 64. Rf6 {[%clk 0:00:02]}  Rf3+ {[%clk 0:00:04]} 65. Kd4 {[%clk 0:00:03]}  Bxe4 {[%clk 0:00:05]} 66. Kxe4 {[%clk 0:00:04]}  Re3+ {[%clk 0:00:05]} 67. Kxf4 {[%clk 0:00:04]}  Re6 {[%clk 0:00:06]} 68. Rxe6 {[%clk 0:00:04]}  Kxe6 {[%clk 0:00:07]} 1/2-1/2


[Site "https://www.chess.com"]

[Event "Titled Tuesday Blitz April 25 Early 2023"]
[White "Pultinevicius, Paulius"]
[Black "Hakobyan, Aram"]
[WhiteFideId "12809390"]
[BlackFideId "13306677"]
[WhiteElo "2529"]
[BlackElo "2584"]
[Result "1-0"]
[Round "04"]
[TimeControl "180+2"]
[Date "2023.04.25"]
[WhiteClock "0:00:07"]
[BlackClock "0:00:06"]

1. d4 {[%clk 0:03:00]}  g6 {[%clk 0:02:57]} 2. c4 {[%clk 0:02:59]}  Bg7 {[%clk 0:02:57]} 3. e4 {[%clk 0:02:58]}  d6 {[%clk 0:02:57]} 4. Nc3 {[%clk 0:02:57]}  c5 {[%clk 0:02:57]} 5. d5 {[%clk 0:02:54]}  Bxc3+ {[%clk 0:02:57]} 6. bxc3 {[%clk 0:02:55]}  e5 {[%clk 0:02:57]} 7. dxe6 {[%clk 0:02:51]}  Bxe6 {[%clk 0:02:57]} 8. Bf4 {[%clk 0:02:48]}  Nc6 {[%clk 0:02:57]} 9. Bd3 {[%clk 0:02:20]}  Nf6 {[%clk 0:02:54]} 10. Ne2 {[%clk 0:02:19]}  Nh5 {[%clk 0:02:42]} 11. Be3 {[%clk 0:02:09]}  Ne5 {[%clk 0:02:39]} 12. O-O {[%clk 0:02:09]}  O-O {[%clk 0:02:39]} 13. Bc2 {[%clk 0:01:46]}  Nxc4 {[%clk 0:02:34]} 14. Bc1 {[%clk 0:01:42]}  b5 {[%clk 0:02:26]} 15. h3 {[%clk 0:01:43]}  Re8 {[%clk 0:02:24]} 16. Rb1 {[%clk 0:01:43]}  a6 {[%clk 0:02:20]} 17. g4 {[%clk 0:01:37]}  Ng7 {[%clk 0:02:14]} 18. Ng3 {[%clk 0:01:38]}  d5 {[%clk 0:01:57]} 19. Kg2 {[%clk 0:01:09]}  Ra7 {[%clk 0:01:48]} 20. Qe2 {[%clk 0:00:37]}  dxe4 {[%clk 0:01:44]} 21. Rd1 {[%clk 0:00:32]}  Rd7 {[%clk 0:01:44]} 22. Bh6 {[%clk 0:00:25]}  Bd5 {[%clk 0:01:39]} 23. Kh2 {[%clk 0:00:23]}  Na3 {[%clk 0:01:23]} 24. Rbc1 {[%clk 0:00:22]}  Bc4 {[%clk 0:01:18]} 25. Rxd7 {[%clk 0:00:21]}  Qxd7 {[%clk 0:01:19]} 26. Qe3 {[%clk 0:00:20]}  Nxc2 {[%clk 0:00:50]} 27. Rxc2 {[%clk 0:00:21]}  Qe7 {[%clk 0:00:50]} 28. Rd2 {[%clk 0:00:20]}  Bd3 {[%clk 0:00:49]} 29. f3 {[%clk 0:00:18]}  c4 {[%clk 0:00:50]} 30. fxe4 {[%clk 0:00:17]}  Ne6 {[%clk 0:00:47]} 31. Rf2 {[%clk 0:00:16]}  f6 {[%clk 0:00:19]} 32. h4 {[%clk 0:00:14]}  Nc5 {[%clk 0:00:15]} 33. Nf5 {[%clk 0:00:06]}  Qxe4 {[%clk 0:00:06]} 34. Qxc5 {[%clk 0:00:06]}  gxf5 {[%clk 0:00:04]} 35. gxf5 {[%clk 0:00:03]}  Qe5+ {[%clk 0:00:05]} 36. Qxe5 {[%clk 0:00:03]}  Rxe5 {[%clk 0:00:06]} 37. Rg2+ {[%clk 0:00:04]}  Kf7 {[%clk 0:00:06]} 38. Rg7+ {[%clk 0:00:04]}  Ke8 {[%clk 0:00:07]} 39. Rxh7 {[%clk 0:00:04]}  Bxf5 {[%clk 0:00:05]} 40. Ra7 {[%clk 0:00:03]}  Re2+ {[%clk 0:00:05]} 41. Kg3 {[%clk 0:00:04]}  Rxa2 {[%clk 0:00:06]} 42. Be3 {[%clk 0:00:03]}  b4 {[%clk 0:00:03]} 43. cxb4 {[%clk 0:00:03]}  c3 {[%clk 0:00:04]} 44. Kf4 {[%clk 0:00:04]}  Bd3 {[%clk 0:00:04]} 45. Rc7 {[%clk 0:00:04]}  c2 {[%clk 0:00:04]} 46. h5 {[%clk 0:00:04]}  Ra1 {[%clk 0:00:04]} 47. h6 {[%clk 0:00:04]}  Rf1+ {[%clk 0:00:04]} 48. Kg3 {[%clk 0:00:04]}  Re1 {[%clk 0:00:02]} 49. Bf4 {[%clk 0:00:03]}  Kf8 {[%clk 0:00:01]} 50. Kf2 {[%clk 0:00:03]}  Re2+ {[%clk 0:00:01]} 51. Kf3 {[%clk 0:00:04]}  Re1 {[%clk 0:00:01]} 52. Rc8+ {[%clk 0:00:04]}  Kf7 {[%clk 0:00:02]} 53. Rc3 {[%clk 0:00:05]}  Be4+ {[%clk 0:00:02]} 54. Kf2 {[%clk 0:00:06]}  Rd1 {[%clk 0:00:02]} 55. Rc4 {[%clk 0:00:05]}  Bf5 {[%clk 0:00:03]} 56. Rc7+ {[%clk 0:00:06]}  Kg6 {[%clk 0:00:04]} 57. Rg7+ {[%clk 0:00:06]}  Kh5 {[%clk 0:00:04]} 58. Rc7 {[%clk 0:00:07]}  Kg6 {[%clk 0:00:04]} 59. Be3 {[%clk 0:00:07]}  Rh1 {[%clk 0:00:04]} 60. Kg2 {[%clk 0:00:07]}  Be4+ {[%clk 0:00:03]} 61. Kf2 {[%clk 0:00:07]}  Kf5 {[%clk 0:00:04]} 62. Bd2 {[%clk 0:00:05]}  Kg4 {[%clk 0:00:03]} 63. Ke3 {[%clk 0:00:05]}  Bg6 {[%clk 0:00:01]} 64. Ke2 {[%clk 0:00:03]}  f5 {[%clk 0:00:01]} 65. Rg7 {[%clk 0:00:03]}  Kh5 {[%clk 0:00:01]} 66. h7 {[%clk 0:00:03]}  Bxh7 {[%clk 0:00:01]} 67. Rxh7+ {[%clk 0:00:04]}  Kg4 {[%clk 0:00:01]} 68. Rxh1 {[%clk 0:00:04]}  c1=Q {[%clk 0:00:02]} 69. Rxc1 {[%clk 0:00:04]}  a5 {[%clk 0:00:02]} 70. Rc4+ {[%clk 0:00:04]}  f4 {[%clk 0:00:03]} 71. bxa5 {[%clk 0:00:05]}  Kg3 {[%clk 0:00:03]} 72. Rxf4 {[%clk 0:00:05]}  Kg2 {[%clk 0:00:04]} 73. a6 {[%clk 0:00:06]}  Kh1 {[%clk 0:00:05]} 74. a7 {[%clk 0:00:07]}  Kg1 {[%clk 0:00:06]} 75. a8=Q {[%clk 0:00:07]}  Kh2 {[%clk 0:00:06]} 76. Qh8+ {[%clk 0:00:07]} 1-0


[Site "https://www.chess.com"]